[Event "Live Chess"]
[Site "Chess.com"]
[Date "2024.06.01"]
[Round "-"]
[White "Ninifu"]
[Black "MellowAesthetic"]
[Result "0-1"]
[WhiteElo "2054"]
[BlackElo "2069"]
[TimeControl "300"]
[EndTime "9:19:06 PDT"]
[Termination "MellowAesthetic won on time"]

1. d4 {[%clk 0:04:56.4]} 1... Nf6 {[%clk 0:04:58.7]} 2. c4 {[%clk 0:04:55.1]}
2... g6 {[%clk 0:04:56.8]} 3. Nc3 {[%clk 0:04:53.6]} 3... Bg7 {[%clk 0:04:56.3]}
4. e4 {[%clk 0:04:51.8]} 4... d6 {[%clk 0:04:55.8]} 5. f4 {[%clk 0:04:50.4]}
5... O-O {[%clk 0:04:55]} 6. Nf3 {[%clk 0:04:49.7]} 6... c5 {[%clk 0:04:54.3]}
7. d5 {[%clk 0:04:48.5]} 7... e6 {[%clk 0:04:53.8]} 8. Be2 {[%clk 0:04:48]} 8...
exd5 {[%clk 0:04:53.1]} 9. cxd5 {[%clk 0:04:47.5]} 9... Re8 {[%clk 0:04:52.3]}
10. e5 {[%clk 0:04:46.3]} 10... dxe5 {[%clk 0:04:52.2]} 11. fxe5 {[%clk
0:04:45.2]} 11... Ng4 {[%clk 0:04:51.9]} 12. Bg5 {[%clk 0:04:43.9]} 12... Qb6
{[%clk 0:04:50.4]} 13. O-O {[%clk 0:04:42.7]} 13... Nxe5 {[%clk 0:04:20.7]} 14.
d6 {[%clk 0:04:39.7]} 14... Nbd7 {[%clk 0:03:51.5]} 15. Nd5 {[%clk 0:04:37.3]}
15... Qxb2 {[%clk 0:03:50.6]} 16. Rb1 {[%clk 0:04:26.1]} 16... Nxf3+ {[%clk
0:03:48.7]} 17. Bxf3 {[%clk 0:04:24.4]} 17... Qd4+ {[%clk 0:03:48.3]} 18. Kh1
{[%clk 0:04:21.5]} 18... Rb8 {[%clk 0:02:14.9]} 19. Be7 {[%clk 0:03:46.9]} 19...
Bf8 {[%clk 0:00:57.6]} 20. Qxd4 {[%clk 0:03:15.8]} 20... cxd4 {[%clk 0:00:56.4]}
21. Nc7 {[%clk 0:03:02.3]} 21... Rxe7 {[%clk 0:00:54.3]} 22. dxe7 {[%clk
0:02:58.8]} 22... Bxe7 {[%clk 0:00:54.2]} 23. Bd5 {[%clk 0:02:38.4]} 23... Nf6
{[%clk 0:00:44.3]} 24. Bb3 {[%clk 0:02:16.6]} 24... Bf5 {[%clk 0:00:42.8]} 25.
Rbe1 {[%clk 0:02:07.5]} 25... Bb4 {[%clk 0:00:36.5]} 26. Rd1 {[%clk 0:01:54.8]}
26... d3 {[%clk 0:00:32.3]} 27. h3 {[%clk 0:01:42.4]} 27... h5 {[%clk
0:00:30.2]} 28. Nb5 {[%clk 0:01:08]} 28... Ne4 {[%clk 0:00:26.6]} 29. Rf4 {[%clk
0:00:41.1]} 29... g5 {[%clk 0:00:21.8]} 30. Rxf5 {[%clk 0:00:39.3]} 30... Ng3+
{[%clk 0:00:21.2]} 31. Kh2 {[%clk 0:00:37.5]} 31... Nxf5 {[%clk 0:00:21.1]} 32.
Rxd3 {[%clk 0:00:36.3]} 32... Re8 {[%clk 0:00:15.5]} 33. Rd7 {[%clk 0:00:31.4]}
33... Re7 {[%clk 0:00:14.8]} 34. Rxe7 {[%clk 0:00:23.8]} 34... Nxe7 {[%clk
0:00:12.6]} 35. Nc7 {[%clk 0:00:19]} 35... Bd6+ {[%clk 0:00:11.1]} 36. Kg1
{[%clk 0:00:16.6]} 36... Bxc7 {[%clk 0:00:11]} 37. Kf1 {[%clk 0:00:14.9]} 37...
Kg7 {[%clk 0:00:10.9]} 38. Ke2 {[%clk 0:00:14.4]} 38... f6 {[%clk 0:00:09.9]}
39. Kd3 {[%clk 0:00:13.3]} 39... h4 {[%clk 0:00:09.5]} 40. Kc4 {[%clk
0:00:11.1]} 40... f5 {[%clk 0:00:08.5]} 41. Kc5 {[%clk 0:00:08.9]} 41... Kf6
{[%clk 0:00:08.2]} 42. Kd4 {[%clk 0:00:07.6]} 42... g4 {[%clk 0:00:06.4]} 43.
Ke3 {[%clk 0:00:06.3]} 43... Kg5 {[%clk 0:00:05.8]} 44. hxg4 {[%clk 0:00:05.2]}
44... fxg4 {[%clk 0:00:05.7]} 45. Be6 {[%clk 0:00:04.1]} 45... h3 {[%clk
0:00:05.6]} 46. gxh3 {[%clk 0:00:02.9]} 46... gxh3 {[%clk 0:00:05.5]} 47. Bxh3
{[%clk 0:00:02]} 47... Kf6 {[%clk 0:00:05.4]} 48. Bg4 {[%clk 0:00:01]} 48... Ke5
{[%clk 0:00:05.3]} 0-1

[Event "Live Chess"]
[Site "Chess.com"]
[Date "2024.06.01"]
[Round "-"]
[White "Queensandpawns"]
[Black "Tilbs_12"]
[Result "1-0"]
[WhiteElo "2460"]
[BlackElo "1662"]
[TimeControl "300"]
[EndTime "9:19:06 PDT"]
[Termination "Queensandpawns won by resignation"]

1. e4 {[%clk 0:04:58]} 1... c6 {[%clk 0:04:58.1]} 2. d3 {[%clk 0:04:57.4]} 2...
d5 {[%clk 0:04:57.2]} 3. Nd2 {[%clk 0:04:56]} 3... dxe4 {[%clk 0:04:54.5]} 4.
Nxe4 {[%clk 0:04:55.9]} 4... Nf6 {[%clk 0:04:53.4]} 5. Ng3 {[%clk 0:04:55.8]}
5... e5 {[%clk 0:04:50.5]} 6. Nf3 {[%clk 0:04:55.7]} 6... Bd6 {[%clk 0:04:45.8]}
7. Be2 {[%clk 0:04:55.2]} 7... O-O {[%clk 0:04:44.3]} 8. O-O {[%clk 0:04:55.1]}
8... Bg4 {[%clk 0:04:42.3]} 9. Bg5 {[%clk 0:04:54.5]} 9... Nbd7 {[%clk
0:04:40.8]} 10. h3 {[%clk 0:04:53.8]} 10... Bxf3 {[%clk 0:04:39.2]} 11. Bxf3
{[%clk 0:04:53.7]} 11... Qc7 {[%clk 0:04:37.3]} 12. Re1 {[%clk 0:04:51.6]} 12...
Rfe8 {[%clk 0:04:35.9]} 13. Qd2 {[%clk 0:04:51.1]} 13... a6 {[%clk 0:04:24.9]}
14. h4 {[%clk 0:04:49.5]} 14... b5 {[%clk 0:04:22.6]} 15. h5 {[%clk 0:04:49]}
15... Rac8 {[%clk 0:04:10.9]} 16. h6 {[%clk 0:04:47.1]} 16... g6 {[%clk
0:04:09.7]} 17. Be4 {[%clk 0:04:39.4]} 17... c5 {[%clk 0:04:06.7]} 18. Qe3
{[%clk 0:04:37]} 18... c4 {[%clk 0:03:59.8]} 19. Qf3 {[%clk 0:04:35.1]} 19...
Nxe4 {[%clk 0:03:42.8]} 20. Nxe4 {[%clk 0:04:35]} 20... Bf8 {[%clk 0:03:42.1]}
21. dxc4 {[%clk 0:04:28.5]} 21... bxc4 {[%clk 0:03:40.7]} 22. Rad1 {[%clk
0:04:28.4]} 22... Nc5 {[%clk 0:03:37.1]} 23. Nf6+ {[%clk 0:04:26]} 23... Kh8
{[%clk 0:03:33.6]} 24. Nxe8 {[%clk 0:04:25.2]} 24... Rxe8 {[%clk 0:03:33.3]} 25.
Bf6+ {[%clk 0:04:22.2]} 25... Kg8 {[%clk 0:03:31.8]} 26. Qd5 {[%clk 0:04:22.1]}
26... Na4 {[%clk 0:03:17.2]} 27. Bxe5 {[%clk 0:04:19.1]} 27... Qb6 {[%clk
0:03:11.2]} 28. Bd4 {[%clk 0:04:17.8]} 28... Qb5 {[%clk 0:03:10]} 29. Qxb5
{[%clk 0:04:15.9]} 29... axb5 {[%clk 0:03:09.9]} 30. Rxe8 {[%clk 0:04:14.9]} 1-0

[Event "Live Chess"]
[Site "Chess.com"]
[Date "2024.06.01"]
[Round "-"]
[White "f4nomore"]
[Black "hapehansen"]
[Result "0-1"]
[WhiteElo "1197"]
[BlackElo "2260"]
[TimeControl "300"]
[EndTime "9:19:13 PDT"]
[Termination "hapehansen won by resignation"]

1. b3 {[%clk 0:04:57.3]} 1... Nf6 {[%clk 0:04:56.2]} 2. Bb2 {[%clk 0:04:57.2]}
2... e6 {[%clk 0:04:55.5]} 3. e3 {[%clk 0:04:56.3]} 3... b6 {[%clk 0:04:52.3]}
4. f4 {[%clk 0:04:55.2]} 4... Bb7 {[%clk 0:04:51.4]} 5. Nf3 {[%clk 0:04:54.1]}
5... g6 {[%clk 0:04:44.7]} 6. Be2 {[%clk 0:04:52.6]} 6... Bg7 {[%clk 0:04:43.8]}
7. O-O {[%clk 0:04:51.1]} 7... O-O {[%clk 0:04:43.3]} 8. Nc3 {[%clk 0:04:46.7]}
8... d5 {[%clk 0:04:40.8]} 9. Rb1 {[%clk 0:04:44.7]} 9... Nbd7 {[%clk 0:04:38]}
10. Nb5 {[%clk 0:04:42.9]} 10... a6 {[%clk 0:04:34]} 11. Nbd4 {[%clk 0:04:41.4]}
11... c5 {[%clk 0:04:31.4]} 12. Nxe6 {[%clk 0:04:29.1]} 12... fxe6 {[%clk
0:04:29.7]} 13. Ng5 {[%clk 0:04:27.7]} 13... Qe7 {[%clk 0:04:26.8]} 14. Bf3
{[%clk 0:04:21.3]} 14... Rae8 {[%clk 0:04:22.2]} 15. d4 {[%clk 0:04:03.5]} 15...
cxd4 {[%clk 0:04:08]} 16. Bxd4 {[%clk 0:04:00.1]} 16... h6 {[%clk 0:03:59.2]}
17. Nh3 {[%clk 0:03:54.5]} 17... Nc5 {[%clk 0:03:54.7]} 18. b4 {[%clk
0:03:38.2]} 18... Ncd7 {[%clk 0:03:48.5]} 19. Qe1 {[%clk 0:03:32.7]} 19... b5
{[%clk 0:03:45.5]} 20. Qg3 {[%clk 0:03:31.2]} 20... Kh7 {[%clk 0:03:40.8]} 21.
Nf2 {[%clk 0:03:20]} 21... e5 {[%clk 0:03:30.6]} 22. fxe5 {[%clk 0:03:15.8]}
22... Nxe5 {[%clk 0:03:29]} 23. Qh3 {[%clk 0:03:02.1]} 23... Nxf3+ {[%clk
0:03:24.2]} 24. gxf3 {[%clk 0:03:00.4]} 24... Bc8 {[%clk 0:03:18.6]} 25. Qg2
{[%clk 0:02:54.5]} 25... Bf5 {[%clk 0:03:14.3]} 26. Kh1 {[%clk 0:02:51.1]} 26...
Bxc2 {[%clk 0:03:06.6]} 27. Rbc1 {[%clk 0:02:46.7]} 27... Rc8 {[%clk 0:03:05.4]}
28. Rg1 {[%clk 0:02:43.7]} 28... Bf5 {[%clk 0:02:59.6]} 29. e4 {[%clk
0:02:40.6]} 29... dxe4 {[%clk 0:02:52.5]} 30. Rxc8 {[%clk 0:02:36.6]} 30... Rxc8
{[%clk 0:02:49.9]} 31. fxe4 {[%clk 0:02:31]} 31... Nxe4 {[%clk 0:02:44.8]} 32.
Bxg7 {[%clk 0:02:27.1]} 32... Nxf2+ {[%clk 0:02:39]} 33. Qxf2 {[%clk 0:02:24.6]}
33... Be4+ {[%clk 0:02:36.9]} 34. Rg2 {[%clk 0:02:23.6]} 34... Rc1+ {[%clk
0:02:33.6]} 35. Qg1 {[%clk 0:02:19.1]} 35... Rxg1+ {[%clk 0:02:32]} 36. Kxg1
{[%clk 0:02:18]} 36... Bxg2 {[%clk 0:02:31.7]} 37. Kxg2 {[%clk 0:02:16.2]} 37...
Kxg7 {[%clk 0:02:30.4]} 0-1

[Event "Live Chess"]
[Site "Chess.com"]
[Date "2024.06.01"]
[Round "-"]
[White "Andysav3"]
[Black "Ferrarifan27"]
[Result "0-1"]
[WhiteElo "1825"]
[BlackElo "2077"]
[TimeControl "300"]
[EndTime "9:19:21 PDT"]
[Termination "Ferrarifan27 won by resignation"]

1. e4 {[%clk 0:04:57.5]} 1... e5 {[%clk 0:04:56.6]} 2. Nf3 {[%clk 0:04:55.9]}
2... Nc6 {[%clk 0:04:54.5]} 3. d4 {[%clk 0:04:52.7]} 3... exd4 {[%clk
0:04:51.2]} 4. Bc4 {[%clk 0:04:51.6]} 4... Bb4+ {[%clk 0:04:49.3]} 5. c3 {[%clk
0:04:50]} 5... dxc3 {[%clk 0:04:49.2]} 6. O-O {[%clk 0:04:48.7]} 6... cxb2
{[%clk 0:04:48]} 7. Bxb2 {[%clk 0:04:47.5]} 7... Nf6 {[%clk 0:04:45.4]} 8. Nc3
{[%clk 0:04:27.6]} 8... O-O {[%clk 0:04:35]} 9. e5 {[%clk 0:04:20.2]} 9... Ng4
{[%clk 0:04:33.5]} 10. Nd5 {[%clk 0:04:16.7]} 10... d6 {[%clk 0:04:31.4]} 11.
exd6 {[%clk 0:03:54.2]} 11... Bxd6 {[%clk 0:04:28.6]} 12. h3 {[%clk 0:03:52.6]}
12... Nge5 {[%clk 0:04:25.5]} 13. Re1 {[%clk 0:03:41.9]} 13... Nxc4 {[%clk
0:04:21.3]} 14. Bc3 {[%clk 0:03:38]} 14... Be6 {[%clk 0:04:09.6]} 15. Rb1 {[%clk
0:03:28]} 15... Bxd5 {[%clk 0:04:08.1]} 0-1

[Event "Live Chess"]
[Site "Chess.com"]
[Date "2024.06.01"]
[Round "-"]
[White "grillage"]
[Black "will-balkwill"]
[Result "1-0"]
[WhiteElo "1945"]
[BlackElo "1077"]
[TimeControl "300"]
[EndTime "9:19:23 PDT"]
[Termination "grillage won by resignation"]

1. d4 {[%clk 0:04:56.3]} 1... Nf6 {[%clk 0:04:58.3]} 2. Nf3 {[%clk 0:04:54.3]}
2... g6 {[%clk 0:04:55.9]} 3. c4 {[%clk 0:04:52.1]} 3... Bg7 {[%clk 0:04:53.8]}
4. g3 {[%clk 0:04:51.3]} 4... O-O {[%clk 0:04:52.2]} 5. Bg2 {[%clk 0:04:50.4]}
5... d6 {[%clk 0:04:51.4]} 6. O-O {[%clk 0:04:49.5]} 6... c5 {[%clk 0:04:40.7]}
7. Nc3 {[%clk 0:04:46.4]} 7... Nc6 {[%clk 0:04:38.4]} 8. d5 {[%clk 0:04:42.9]}
8... Nb8 {[%clk 0:04:31.1]} 9. e4 {[%clk 0:04:39.5]} 9... Bg4 {[%clk 0:04:24.7]}
10. Qd3 {[%clk 0:04:29.9]} 10... Nbd7 {[%clk 0:04:17.3]} 11. Nd2 {[%clk
0:04:24.6]} 11... Qc7 {[%clk 0:03:53.6]} 12. f3 {[%clk 0:04:19.3]} 12... Bh5
{[%clk 0:03:48.3]} 13. g4 {[%clk 0:04:16.7]} 13... Nxg4 {[%clk 0:03:46.9]} 14.
fxg4 {[%clk 0:04:15.1]} 14... Bxg4 {[%clk 0:03:46.4]} 15. Nf3 {[%clk 0:04:03.1]}
15... Ne5 {[%clk 0:03:40.6]} 16. Nxe5 {[%clk 0:04:00.9]} 16... Bxe5 {[%clk
0:03:40.5]} 17. Bf4 {[%clk 0:03:57.1]} 17... Bd4+ {[%clk 0:03:30.8]} 18. Be3
{[%clk 0:03:54.8]} 18... Be5 {[%clk 0:03:22.2]} 19. Kh1 {[%clk 0:03:52.8]} 19...
Qd7 {[%clk 0:03:19.6]} 20. Ne2 {[%clk 0:03:45.8]} 20... Bh3 {[%clk 0:03:12.6]}
21. Rf2 {[%clk 0:03:39.3]} 21... Qg4 {[%clk 0:03:02.1]} 22. Bh6 {[%clk
0:03:28.2]} 22... Rfe8 {[%clk 0:02:58.5]} 23. Qxh3 {[%clk 0:03:24.7]} 1-0

[Event "Live Chess"]
[Site "Chess.com"]
[Date "2024.06.01"]
[Round "-"]
[White "Hazban"]
[Black "GwaryTek"]
[Result "1-0"]
[WhiteElo "2043"]
[BlackElo "2030"]
[TimeControl "300"]
[EndTime "9:19:39 PDT"]
[Termination "Hazban won on time"]

1. d4 {[%clk 0:04:59]} 1... Nf6 {[%clk 0:04:56.2]} 2. Nf3 {[%clk 0:04:57.6]}
2... d6 {[%clk 0:04:53.5]} 3. Nc3 {[%clk 0:04:56.1]} 3... g6 {[%clk 0:04:51.9]}
4. e4 {[%clk 0:04:55.1]} 4... Bg7 {[%clk 0:04:51.5]} 5. h3 {[%clk 0:04:54.2]}
5... O-O {[%clk 0:04:51]} 6. Be3 {[%clk 0:04:52.9]} 6... Nbd7 {[%clk 0:04:50]}
7. Qd2 {[%clk 0:04:51]} 7... c5 {[%clk 0:04:49.5]} 8. O-O-O {[%clk 0:04:47.8]}
8... cxd4 {[%clk 0:04:48.5]} 9. Nxd4 {[%clk 0:04:46.7]} 9... a6 {[%clk
0:04:34.4]} 10. Kb1 {[%clk 0:04:42.9]} 10... Re8 {[%clk 0:04:31.7]} 11. Bh6
{[%clk 0:04:37.4]} 11... Bh8 {[%clk 0:04:30.4]} 12. f3 {[%clk 0:04:33.6]} 12...
Qc7 {[%clk 0:04:27.4]} 13. Nd5 {[%clk 0:04:29.4]} 13... Nxd5 {[%clk 0:04:23.2]}
14. exd5 {[%clk 0:04:28.4]} 14... b5 {[%clk 0:04:09.9]} 15. h4 {[%clk
0:04:22.6]} 15... Bb7 {[%clk 0:03:40.8]} 16. Nb3 {[%clk 0:04:20.2]} 16... Rac8
{[%clk 0:03:25.3]} 17. h5 {[%clk 0:04:19]} 17... Bxd5 {[%clk 0:03:20]} 18. hxg6
{[%clk 0:04:12.5]} 18... hxg6 {[%clk 0:03:19.6]} 19. Bd3 {[%clk 0:03:48.1]}
19... Ne5 {[%clk 0:02:28.3]} 20. Bf4 {[%clk 0:03:08.6]} 20... Be6 {[%clk
0:01:42.6]} 21. Bxe5 {[%clk 0:03:02.3]} 21... Bxe5 {[%clk 0:01:30.2]} 22. Qh6
{[%clk 0:02:55.9]} 22... Bg7 {[%clk 0:01:28.6]} 23. Qh7+ {[%clk 0:02:49]} 23...
Kf8 {[%clk 0:01:28]} 24. Rde1 {[%clk 0:02:37.6]} 24... Bxb3 {[%clk 0:01:19.6]}
25. axb3 {[%clk 0:02:35.5]} 25... Qc5 {[%clk 0:01:16.4]} 26. Re4 {[%clk
0:02:24.3]} 26... Qf2 {[%clk 0:00:38.7]} 27. Rg4 {[%clk 0:02:06]} 27... e6
{[%clk 0:00:32.5]} 28. Ka2 {[%clk 0:01:39.7]} 28... Rc5 {[%clk 0:00:23.1]} 29.
Bxg6 {[%clk 0:01:29.8]} 29... fxg6 {[%clk 0:00:18.3]} 30. Rxg6 {[%clk
0:01:27.9]} 30... Qd4 {[%clk 0:00:13.7]} 31. c3 {[%clk 0:01:16.7]} 31... Rxc3
{[%clk 0:00:07.3]} 32. Qxg7+ {[%clk 0:01:08]} 32... Qxg7 {[%clk 0:00:05.1]} 33.
Rxg7 {[%clk 0:01:07.1]} 33... Kxg7 {[%clk 0:00:03.7]} 34. bxc3 {[%clk
0:01:05.7]} 1-0

[Event "Live Chess"]
[Site "Chess.com"]
[Date "2024.06.01"]
[Round "-"]
[White "CheDA13"]
[Black "Nathaniel250"]
[Result "0-1"]
[WhiteElo "1491"]
[BlackElo "1403"]
[TimeControl "300"]
[EndTime "9:19:48 PDT"]
[Termination "Nathaniel250 won by checkmate"]

1. e4 {[%clk 0:04:59.3]} 1... c5 {[%clk 0:04:58.8]} 2. Nf3 {[%clk 0:04:57.7]}
2... Nc6 {[%clk 0:04:57.9]} 3. d4 {[%clk 0:04:56]} 3... cxd4 {[%clk 0:04:56.9]}
4. Nxd4 {[%clk 0:04:55.9]} 4... e6 {[%clk 0:04:53.6]} 5. c4 {[%clk 0:04:51.9]}
5... Bc5 {[%clk 0:04:47]} 6. Be3 {[%clk 0:04:41.9]} 6... Qb6 {[%clk 0:04:40.4]}
7. Nc2 {[%clk 0:04:11.1]} 7... Bxe3 {[%clk 0:04:34.3]} 8. Nxe3 {[%clk
0:04:09.9]} 8... Qxb2 {[%clk 0:04:32.5]} 9. Nd2 {[%clk 0:03:58.1]} 9... Nd4
{[%clk 0:04:21.2]} 10. Bd3 {[%clk 0:03:48.4]} 10... Qb6 {[%clk 0:04:01.6]} 11.
O-O {[%clk 0:03:39.6]} 11... d6 {[%clk 0:03:55.3]} 12. Qg4 {[%clk 0:03:17.6]}
12... g6 {[%clk 0:03:37.1]} 13. Rfb1 {[%clk 0:03:01.8]} 13... Qc7 {[%clk
0:03:35.1]} 14. Qd1 {[%clk 0:02:49.5]} 14... Ne7 {[%clk 0:03:22.6]} 15. Nf3
{[%clk 0:02:46.5]} 15... Nxf3+ {[%clk 0:03:17]} 16. Qxf3 {[%clk 0:02:46.4]}
16... O-O {[%clk 0:03:14.1]} 17. h4 {[%clk 0:02:44.6]} 17... e5 {[%clk
0:03:11.6]} 18. h5 {[%clk 0:02:38.6]} 18... Be6 {[%clk 0:02:28.3]} 19. h6 {[%clk
0:02:34.5]} 19... f5 {[%clk 0:01:58.5]} 20. exf5 {[%clk 0:02:21.3]} 20... Bxf5
{[%clk 0:01:48.8]} 21. Bxf5 {[%clk 0:02:19.7]} 21... Nxf5 {[%clk 0:01:47.5]} 22.
Nxf5 {[%clk 0:02:17.4]} 22... Rxf5 {[%clk 0:01:46.4]} 23. Qxb7 {[%clk
0:02:16.8]} 23... Rf7 {[%clk 0:01:23]} 24. Qxc7 {[%clk 0:02:05.4]} 24... Rxc7
{[%clk 0:01:21.7]} 25. Rb4 {[%clk 0:01:59.6]} 25... Rac8 {[%clk 0:01:14.8]} 26.
Rab1 {[%clk 0:01:27.8]} 26... Kf7 {[%clk 0:01:08.1]} 27. Rb7 {[%clk 0:01:22.6]}
27... Ke6 {[%clk 0:01:06.9]} 28. Rxc7 {[%clk 0:01:21.5]} 28... Rxc7 {[%clk
0:01:06.8]} 29. Rb4 {[%clk 0:01:15.2]} 29... Kf5 {[%clk 0:01:04.6]} 30. Kf1
{[%clk 0:01:14.3]} 30... Kg5 {[%clk 0:01:03.5]} 31. Ke2 {[%clk 0:01:11]} 31...
Kxh6 {[%clk 0:01:01.8]} 32. Ke3 {[%clk 0:01:09.9]} 32... Kg5 {[%clk 0:00:59.9]}
33. g3 {[%clk 0:01:08.7]} 33... Kf6 {[%clk 0:00:58.7]} 34. f4 {[%clk 0:01:08.1]}
34... exf4+ {[%clk 0:00:57.3]} 35. gxf4 {[%clk 0:01:08]} 35... Kf5 {[%clk
0:00:51.7]} 36. Rb5+ {[%clk 0:01:06.4]} 36... Ke6 {[%clk 0:00:50.6]} 37. Kd4
{[%clk 0:01:01.6]} 37... h5 {[%clk 0:00:46.6]} 38. Rb2 {[%clk 0:00:59.9]} 38...
Rd7 {[%clk 0:00:34.4]} 39. Re2+ {[%clk 0:00:56.8]} 39... Kf6 {[%clk 0:00:32.6]}
40. Ke4 {[%clk 0:00:53.3]} 40... Re7+ {[%clk 0:00:31.7]} 41. Kf3 {[%clk
0:00:49.2]} 41... Rxe2 {[%clk 0:00:31.3]} 42. Kxe2 {[%clk 0:00:49.1]} 42... g5
{[%clk 0:00:30.4]} 43. Kf3 {[%clk 0:00:49]} 43... gxf4 {[%clk 0:00:29.2]} 44.
Kxf4 {[%clk 0:00:48.9]} 44... h4 {[%clk 0:00:26.2]} 45. Kg4 {[%clk 0:00:47.9]}
45... Ke5 {[%clk 0:00:25.6]} 46. Kxh4 {[%clk 0:00:46.5]} 46... Kd4 {[%clk
0:00:25.2]} 47. Kg4 {[%clk 0:00:45.7]} 47... Kxc4 {[%clk 0:00:24.8]} 48. Kf4
{[%clk 0:00:45.3]} 48... d5 {[%clk 0:00:23.9]} 49. Ke3 {[%clk 0:00:44.5]} 49...
d4+ {[%clk 0:00:23]} 50. Kd2 {[%clk 0:00:43.8]} 50... d3 {[%clk 0:00:21.2]} 51.
a4 {[%clk 0:00:42.7]} 51... a5 {[%clk 0:00:17]} 52. Kd1 {[%clk 0:00:40.8]} 52...
Kb4 {[%clk 0:00:13.9]} 53. Kd2 {[%clk 0:00:40.7]} 53... Kxa4 {[%clk 0:00:12.8]}
54. Kxd3 {[%clk 0:00:40.6]} 54... Kb3 {[%clk 0:00:12.2]} 55. Kd2 {[%clk
0:00:39.9]} 55... Kb2 {[%clk 0:00:10.2]} 56. Kd3 {[%clk 0:00:39.1]} 56... a4
{[%clk 0:00:09.5]} 57. Kc4 {[%clk 0:00:39]} 57... a3 {[%clk 0:00:08.9]} 58. Kb4
{[%clk 0:00:38.9]} 58... a2 {[%clk 0:00:08.4]} 59. Kc5 {[%clk 0:00:38.7]} 59...
a1=Q {[%clk 0:00:07.9]} 60. Kd5 {[%clk 0:00:38.6]} 60... Qa4 {[%clk 0:00:07.2]}
61. Ke5 {[%clk 0:00:38.5]} 61... Qc4 {[%clk 0:00:06.6]} 62. Kf5 {[%clk
0:00:37.4]} 62... Qd4 {[%clk 0:00:06.2]} 63. Kg6 {[%clk 0:00:35.9]} 63... Qe5
{[%clk 0:00:05.4]} 64. Kf7 {[%clk 0:00:35.8]} 64... Qd6 {[%clk 0:00:04.6]} 65.
Kg7 {[%clk 0:00:34.3]} 65... Qe6 {[%clk 0:00:04]} 66. Kh8 {[%clk 0:00:34.2]}
66... Qe7 {[%clk 0:00:03]} 67. Kg8 {[%clk 0:00:33.9]} 67... Kc3 {[%clk
0:00:02.7]} 68. Kh8 {[%clk 0:00:33.8]} 68... Kd4 {[%clk 0:00:02.5]} 69. Kg8
{[%clk 0:00:33.7]} 69... Ke5 {[%clk 0:00:02.4]} 70. Kh8 {[%clk 0:00:33.6]} 70...
Kf6 {[%clk 0:00:02.2]} 71. Kg8 {[%clk 0:00:33.5]} 71... Kg6 {[%clk 0:00:02.1]}
72. Kh8 {[%clk 0:00:33.4]} 72... Qg7# {[%clk 0:00:01.1]} 0-1

[Event "Live Chess"]
[Site "Chess.com"]
[Date "2024.06.01"]
[Round "-"]
[White "GerardATHart"]
[Black "RamsayFlayer"]
[Result "0-1"]
[WhiteElo "1452"]
[BlackElo "1965"]
[TimeControl "300"]
[EndTime "9:19:54 PDT"]
[Termination "RamsayFlayer won by checkmate"]

1. e4 {[%clk 0:04:53.9]} 1... e5 {[%clk 0:04:59.4]} 2. Nf3 {[%clk 0:04:51.7]}
2... Nc6 {[%clk 0:04:58.9]} 3. Bb5 {[%clk 0:04:49.7]} 3... a6 {[%clk 0:04:57.5]}
4. Ba4 {[%clk 0:04:48.2]} 4... Nf6 {[%clk 0:04:57.1]} 5. d3 {[%clk 0:04:46.7]}
5... b5 {[%clk 0:04:55.1]} 6. Bb3 {[%clk 0:04:44.8]} 6... Bc5 {[%clk 0:04:54.2]}
7. c3 {[%clk 0:04:43.3]} 7... d6 {[%clk 0:04:52.2]} 8. O-O {[%clk 0:04:41.7]}
8... O-O {[%clk 0:04:50.8]} 9. Nbd2 {[%clk 0:04:40.2]} 9... Be6 {[%clk 0:04:48]}
10. Bc2 {[%clk 0:04:38.4]} 10... Bb6 {[%clk 0:04:44.2]} 11. Qe2 {[%clk
0:04:32.6]} 11... h6 {[%clk 0:04:42.4]} 12. h3 {[%clk 0:04:28.1]} 12... Re8
{[%clk 0:04:39.8]} 13. Rd1 {[%clk 0:04:23.9]} 13... Nh5 {[%clk 0:04:29.5]} 14.
Nf1 {[%clk 0:04:18.1]} 14... Qf6 {[%clk 0:04:18.3]} 15. Be3 {[%clk 0:04:09.4]}
15... Nf4 {[%clk 0:04:13]} 16. Qe1 {[%clk 0:03:55.2]} 16... Nxh3+ {[%clk
0:04:07.1]} 17. gxh3 {[%clk 0:03:50.7]} 17... Qxf3 {[%clk 0:04:05.7]} 18. Bxb6
{[%clk 0:03:34.4]} 18... Bxh3 {[%clk 0:03:56.6]} 19. Ng3 {[%clk 0:03:28.8]}
19... Qg2# {[%clk 0:03:54.5]} 0-1